Workbook

Sheet Sheeting
A1: SHEETING CALCULATOR | E1: Version 2: More accurately models the jib boom
E2: Version 3: Allows a sliding sheet attachment point
A18: MAIN | H18: JIB | O18: Rig | P18: Rig | Q18: Rig
H19: Rig#: | I19: 1 | O19: 1 | P19: 2 | Q19: 3
A20: Min R: | B20: 140 | C20: mm | D20: =IF(MainMinR>MainMaxR,"Error!","OK") -> OK | H20: Min R: | I20: 210 | J20: mm | K20: =IF(JibMinR>JibMaxR,"Error!","OK") -> OK | N20: Luff | O20: 1330 | P20: 990 | Q20: 740 | R20: mm
A21: Max R: | B21: 140 | C21: mm | D21: =IF(MainMinR>MainMaxR,"MinR > MaxR","OK") -> OK | H21: Max R: | I21: 210 | J21: mm | K21: =IF(JibMinR>JibMaxR,"MinR > MaxR","OK") -> OK | N21: Leech | O21: 1255 | P21: 910 | Q21: 665 | R21: mm
A22: F: | B22: 170 | C22: mm | H22: F: | I22: 250 | J22: mm | K22: f: | L22: =I22*SIN(HLOOKUP(I19,N19:P29,11)*PI()/180) -> 243.6517805 | N22: Foot | O22: 385 | P22: 350 | Q22: 300 | R22: mm
A23: Ht: | B23: 0 | C23: mm | H23: Ht: | I23: 40 | J23: mm | K23: ht: | L23: =I23*SIN(HLOOKUP(I19,N19:P29,11)*PI()/180) -> 38.98428487 | N23: Offset | O23: 80 | P23: 70 | Q23: 60 | R23: mm
A24: R: | B24: =IF(MainMaxR<MainF,MainMaxR,IF(MainMinR>MainF,MainMinR,MainF)) -> 140 | C24: mm | K24: min r: | L24: =I20*SIN(PI()*HLOOKUP(I19,N19:P29,11)/180) -> 204.6674956 | N24: Off% | O24: =O23/O22 -> 0.2077922078 | P24: =P23/P22 -> 0.2 | Q24: =Q23/Q22 -> 0.2
K25: max r: | L25: =I21*SIN(PI()*HLOOKUP(I19,N19:P29,11)/180) -> 204.6674956 | N25: Tack | O25: =ACOS(((O20^2+(O22-20)^2-O21^2))/(2*O20*(O22-20)))*180/PI() -> 70.311645 | P25: =ACOS(((P20^2+(P22-20)^2-P21^2))/(2*P20*(P22-20)))*180/PI() -> 66.4658252 | Q25: =ACOS(((Q20^2+(Q22-20)^2-Q21^2))/(2*Q20*(Q22-20)))*180/PI() -> 63.67434951 | R25: deg
A26: Incr: | B26: 12.5 | C26: mm | K26: r: | L26: =IF(JibMaxR<JibF,JibMaxR,IF(JibMinR>JibF,JibMinR,JibF)) -> 204.6674956 | N26: Clew | O26: =ACOS((O21^2+(O22-20)^2-O20^2)/(2*O21*(O22-20)))*180/PI() -> 93.79581103 | P26: =ACOS((P21^2+(P22-20)^2-P20^2)/(2*P21*(P22-20)))*180/PI() -> 94.11517236 | Q26: =ACOS((Q21^2+(Q22-20)^2-Q20^2)/(2*Q21*(Q22-20)))*180/PI() -> 94.15388941 | R26: deg
A27: Base: | B27: 5 | C27: deg | H27: Base: | I27: 15 | J27: deg | N27: P.luff | O27: =O20-(O20-O21)*(1-O23/O22) -> 1270.584416 | P27: =P20-(P20-P21)*(1-P23/P22) -> 926 | Q27: =Q20-(Q20-Q21)*(1-Q23/Q22) -> 680 | R27: mm
A28: Start: | B28: =SQRT(MainHt^2+(MainF-MainR*COS(PI()*MainBase/180))^2+(MainR*SIN(PI()*MainBase/180))^2) -> 32.88057741 | C28: mm | H28: Start: | I28: =SQRT(JibHt^2+(JibF-JibR*COS(PI()*JibBase/180))^2+(JibR*SIN(PI()*JibBase/180))^2) -> 80.23679607 | J28: mm | N28: P.foot | O28: =O22-O23 -> 305 | P28: =P22-P23 -> 280 | Q28: =Q22-Q23 -> 240 | R28: mm
N29: Pivot | O29: =90-180*ACOS((O27^2+O21^2-(O28-20)^2)/(2*O27*O21))/PI() -> 77.06051767 | P29: =90-180*ACOS((P27^2+P21^2-(P28-20)^2)/(2*P27*P21))/PI() -> 73.74815092 | Q29: =90-180*ACOS((Q27^2+Q21^2-(Q28-20)^2)/(2*Q27*Q21))/PI() -> 71.21482986 | R29: deg
A30: Step | B30: Feed | C30: eff | D30: Try R | E30: New R | F30: MSA | G30: Flag | H30: Step | I30: Feed | J30: eff | K30: Try R | L30: New R | M30: JSA | N30: Flag | O30: Diff
A31: 0 | B31: =A31*Incr+MainStart -> 32.88057741 | C31: =SQRT(B31^2-MainHt^2) -> 32.88057741 | D31: =IF(MainF>C31,SQRT(MainF^2-C31^2),0) -> 166.7898907 | E31: =IF(D31<MainMinR,MainMinR,IF(D31>MainMaxR,MainMaxR,D31)) -> 140 | F31: =180*ACOS((E31^2+MainF^2-C31^2)/(2*MainF*E31))/(PI()) -> 5 | G31: =IF(ABS($B$27-$F$31)<0.1,"","OFF") ->  | H31: 0 | I31: =H31*Incr+JibStart -> 80.23679607 | J31: =SQRT(I31^2-JibHt^2) -> 70.12965833 | K31: =IF(JibF>J31,SQRT(JibF^2-J31^2),0) -> 233.3409976 | L31: =IF(K31<JibMinR,JibMinR,IF(K31>JibMaxR,JibMaxR,K31)) -> 204.6674956 | M31: =180*ACOS((L31^2+JibF^2-J31^2)/(2*JibF*L31))/(PI()) -> 15 | N31: =IF(ABS($I$27-$M$31)<0.1,"","OFF") ->  | O31: =M31-F31 -> 10
A32: 1 | B32: =A32*Incr+MainStart -> 45.38057741 | C32: =SQRT(B32^2-MainHt^2) -> 45.38057741 | D32: =IF(MainF>C32,SQRT(MainF^2-C32^2),0) -> 163.8310202 | E32: =IF(D32<MainMinR,MainMinR,IF(D32>MainMaxR,MainMaxR,D32)) -> 140 | F32: =180*ACOS((E32^2+MainF^2-C32^2)/(2*MainF*E32))/(PI()) -> 12.67172323 | H32: 1 | I32: =H32*Incr+JibStart -> 92.73679607 | J32: =SQRT(I32^2-JibHt^2) -> 84.14474956 | K32: =IF(JibF>J32,SQRT(JibF^2-J32^2),0) -> 228.6609963 | L32: =IF(K32<JibMinR,JibMinR,IF(K32>JibMaxR,JibMaxR,K32)) -> 204.6674956 | M32: =180*ACOS((L32^2+JibF^2-J32^2)/(2*JibF*L32))/(PI()) -> 19.22257499 | O32: 6.550851762
A33: 2 | B33: 57.88057741 | C33: 57.88057741 | D33: 159.8431693 | E33: 140 | F33: 18.46342326 | H33: 2 | I33: 105.2367961 | J33: 97.74972522 | K33: 223.184187 | L33: 204.6674956 | M33: 23.15647723 | O33: 4.693053972
A34: 3 | B34: 70.38057741 | C34: 70.38057741 | D34: 154.7468072 | E34: 140 | F34: 23.81641754 | H34: 3 | I34: 117.7367961 | J34: 111.0953585 | K34: 216.8502051 | L34: 204.6674956 | M34: 26.93909377 | O34: 3.12267623
A35: 4 | B35: 82.88057741 | C35: 82.88057741 | D35: 148.4277935 | E35: 140 | F35: 29.00270161 | H35: 4 | I35: 130.2367961 | J35: 124.2652348 | K35: 209.5813483 | L35: 204.6674956 | M35: 30.63739354 | O35: 1.63469193
A36: 5 | B36: 95.38057741 | C36: 95.38057741 | D36: 140.7215174 | E36: 140 | F36: 34.12817234 | H36: 5 | I36: 142.7367961 | J36: 137.3099359 | K36: 201.2763564 | L36: 204.6674956 | M36: 34.28992947 | O36: 0.161757131
A37: 6 | B37: 107.8805774 | C37: 107.8805774 | D37: 131.3840973 | E37: 140 | F37: 39.24868508 | H37: 6 | I37: 155.2367961 | J37: 150.2620657 | K37: 191.8006823 | L37: 204.6674956 | M37: 37.92166617 | O37: -1.327018915
A38: 7 | B38: 120.3805774 | C38: 120.3805774 | D38: 120.0354805 | E38: 140 | F38: 44.40065885 | H38: 7 | I38: 167.7367961 | J38: 163.1436738 | K38: 180.9705275 | L38: 204.6674956 | M38: 41.55037482 | O38: -2.850284034
A39: 8 | B39: 132.8805774 | C39: 132.8805774 | D39: 106.031845 | E39: 140 | F39: 49.61225672 | H39: 8 | I39: 180.2367961 | J39: 175.970248 | K39: 168.5249594 | L39: 204.6674956 | M39: 45.18978804 | O39: -4.422468683
A40: 9 | B40: 145.3805774 | C40: 145.3805774 | D40: 88.11633056 | E40: 140 | F40: 54.90847725 | H40: 9 | I40: 192.7367961 | J40: 188.7530082 | K40: 154.0730088 | L40: 204.6674956 | M40: 48.85132531 | O40: -6.057151942
A41: 10 | B41: 157.8805774 | C41: 157.8805774 | D41: 63.03747518 | E41: 140 | F41: 60.31400789 | H41: 10 | I41: 205.2367961 | J41: 201.5002928 | K41: 136.9811014 | L41: 204.6674956 | M41: 52.54512526 | O41: -7.76888263
A42: 11 | B42: 170.3805774 | C42: 170.3805774 | D42: 0 | E42: 140 | F42: 65.85525239 | H42: 11 | I42: 217.7367961 | J42: 214.218435 | K42: 116.0889841 | L42: 204.6674956 | M42: 56.28072109 | O42: -9.5745313
A43: 12 | B43: 182.8805774 | C43: 182.8805774 | D43: 0 | E43: 140 | F43: 71.56219286 | H43: 12 | I43: 230.2367961 | J43: 226.9123351 | K43: 88.75236519 | L43: 204.6674956 | M43: 60.0675285 | O43: -11.49466436
A44: 13 | B44: 195.3805774 | C44: 195.3805774 | D44: 0 | E44: 140 | F44: 77.47052622 | H44: 13 | I44: 242.7367961 | J44: 239.5858462 | K44: 44.32620471 | L44: 204.6674956 | M44: 63.91523993 | O44: -13.55528629
A45: 14 | B45: 207.8805774 | C45: 207.8805774 | D45: 0 | E45: 140 | F45: 83.62453388 | H45: 14 | I45: 255.2367961 | J45: 252.2420417 | K45: 0 | L45: 204.6674956 | M45: 67.83418395 | O45: -15.79034993
A46: 15 | B46: 220.3805774 | C46: 220.3805774 | D46: 0 | E46: 140 | F46: 90.08136834 | H46: 15 | I46: 267.7367961 | J46: 264.8834036 | K46: 0 | L46: 204.6674956 | M46: 71.83569311 | O46: -18.24567523
A47: 16 | B47: 232.8805774 | C47: 232.8805774 | D47: 0 | E47: 140 | F47: 96.91800535 | H47: 16 | I47: 280.2367961 | J47: 277.511959 | K47: 0 | L47: 204.6674956 | M47: 75.93251945 | O47: -20.98548591
A48: 17 | B48: 245.3805774 | C48: 245.3805774 | D48: 0 | E48: 140 | F48: 104.2434565 | H48: 17 | I48: 292.7367961 | J48: 290.1293803 | K48: 0 | L48: 204.6674956 | M48: 80.13934161 | O48: -24.10411491
A49: 18 | B49: 257.8805774 | C49: 257.8805774 | D49: 0 | E49: 140 | F49: 112.2223249 | H49: 18 | I49: 305.2367961 | J49: 302.7370595 | K49: 0 | L49: 204.6674956 | M49: 84.47342147 | O49: -27.74890342
A50: 19 | B50: 270.3805774 | C50: 270.3805774 | D50: 0 | E50: 140 | F50: 121.1262491 | H50: 19 | I50: 317.7367961 | J50: 315.3361652 | K50: 0 | L50: 204.6674956 | M50: 88.95549519 | O50: -32.17075395
A51: 20 | B51: 282.8805774 | C51: 282.8805774 | D51: 0 | E51: 140 | F51: 131.4690001 | H51: 20 | I51: 330.2367961 | J51: 327.9276856 | K51: 0 | L51: 204.6674956 | M51: 93.61103354 | O51: -37.85796656
B53: The "feed" represents the amount of line that is spooled.
B54: Subtract the feed of step 0 from that of step 20 to see the amount of line spooled
B55: from "fully sheeted in" to "fully sheeted out". This is given below:
B57: =B51-B31 -> 250 | C57: mm | D57: Net line spooled | H57: =I51-I31 -> 250 | I57: mm

Sheet Graph
A2: Step | B2: MSA | C2: JSA
A3: =Sheeting!A31 -> 0 | B3: =IF(Sheeting!F31<$H$25,Sheeting!F31,$H$25) -> 5 | C3: =Sheeting!M31 -> 15
A4: =Sheeting!A32 -> 1 | B4: =IF(Sheeting!F32<$H$25,Sheeting!F32,$H$25) -> 12.67172323 | C4: =Sheeting!M32 -> 19.22257499
A5: =Sheeting!A33 -> 2 | B5: =IF(Sheeting!F33<$H$25,Sheeting!F33,$H$25) -> 18.46342326 | C5: =Sheeting!M33 -> 23.15647723
A6: =Sheeting!A34 -> 3 | B6: =IF(Sheeting!F34<$H$25,Sheeting!F34,$H$25) -> 23.81641754 | C6: =Sheeting!M34 -> 26.93909377
A7: =Sheeting!A35 -> 4 | B7: =IF(Sheeting!F35<$H$25,Sheeting!F35,$H$25) -> 29.00270161 | C7: =Sheeting!M35 -> 30.63739354
A8: =Sheeting!A36 -> 5 | B8: =IF(Sheeting!F36<$H$25,Sheeting!F36,$H$25) -> 34.12817234 | C8: =Sheeting!M36 -> 34.28992947
A9: =Sheeting!A37 -> 6 | B9: =IF(Sheeting!F37<$H$25,Sheeting!F37,$H$25) -> 39.24868508 | C9: =Sheeting!M37 -> 37.92166617
A10: =Sheeting!A38 -> 7 | B10: =IF(Sheeting!F38<$H$25,Sheeting!F38,$H$25) -> 44.40065885 | C10: =Sheeting!M38 -> 41.55037482
A11: =Sheeting!A39 -> 8 | B11: =IF(Sheeting!F39<$H$25,Sheeting!F39,$H$25) -> 49.61225672 | C11: =Sheeting!M39 -> 45.18978804
A12: =Sheeting!A40 -> 9 | B12: =IF(Sheeting!F40<$H$25,Sheeting!F40,$H$25) -> 54.90847725 | C12: =Sheeting!M40 -> 48.85132531
A13: =Sheeting!A41 -> 10 | B13: =IF(Sheeting!F41<$H$25,Sheeting!F41,$H$25) -> 60.31400789 | C13: =Sheeting!M41 -> 52.54512526
A14: =Sheeting!A42 -> 11 | B14: =IF(Sheeting!F42<$H$25,Sheeting!F42,$H$25) -> 65.85525239 | C14: =Sheeting!M42 -> 56.28072109
A15: =Sheeting!A43 -> 12 | B15: =IF(Sheeting!F43<$H$25,Sheeting!F43,$H$25) -> 71.56219286 | C15: =Sheeting!M43 -> 60.0675285
A16: =Sheeting!A44 -> 13 | B16: =IF(Sheeting!F44<$H$25,Sheeting!F44,$H$25) -> 77.47052622 | C16: =Sheeting!M44 -> 63.91523993
A17: =Sheeting!A45 -> 14 | B17: =IF(Sheeting!F45<$H$25,Sheeting!F45,$H$25) -> 83.62453388 | C17: =Sheeting!M45 -> 67.83418395
A18: =Sheeting!A46 -> 15 | B18: =IF(Sheeting!F46<$H$25,Sheeting!F46,$H$25) -> 90 | C18: =Sheeting!M46 -> 71.83569311
A19: =Sheeting!A47 -> 16 | B19: =IF(Sheeting!F47<$H$25,Sheeting!F47,$H$25) -> 90 | C19: =Sheeting!M47 -> 75.93251945
A20: =Sheeting!A48 -> 17 | B20: =IF(Sheeting!F48<$H$25,Sheeting!F48,$H$25) -> 90 | C20: =Sheeting!M48 -> 80.13934161
A21: =Sheeting!A49 -> 18 | B21: =IF(Sheeting!F49<$H$25,Sheeting!F49,$H$25) -> 90 | C21: =Sheeting!M49 -> 84.47342147
A22: =Sheeting!A50 -> 19 | B22: =IF(Sheeting!F50<$H$25,Sheeting!F50,$H$25) -> 90 | C22: =Sheeting!M50 -> 88.95549519
A23: =Sheeting!A51 -> 20 | B23: =IF(Sheeting!F51<$H$25,Sheeting!F51,$H$25) -> 90 | C23: =Sheeting!M51 -> 93.61103354
A25: R | B25: =Sheeting!B24 -> 140 | C25: =Sheeting!I24 -> 0 | E25: Max main sheeting angle | H25: 90
A26: F | B26: =Sheeting!B22 -> 170 | C26: =Sheeting!I22 -> 250
A27: Ht | B27: =Sheeting!B23 -> 0 | C27: =Sheeting!I23 -> 40
C37: R = radius
G40: Ht = height
C43: F = fairlead
